Cogmind - Beta 9.4 @@@ ROGUE MODE // 2020.01.29 @ 23:48:13 // Winter2019/RPGLIKE Player: Nalzok Result: Destroyed self with Rocket Launcher Performance ------------- Evolutions (1) 500 Regions Visited (4) 800 Robots Destroyed (51) 255 Value Destroyed (1096) 1096 Prototype IDs (0) 0 Alien Tech Used (0) 0 Bonus (11) 11 TOTAL SCORE: 2662 Bonus ------- High Alert Combat Kills 11 Cogmind --------- Core Integrity 0/600 Matter 213/300 Energy 100/100 System Corruption 2% Temperature Cool (3) Movement Walking (120) Location -9/Mines Parts ------- > --- POWER (1) -------- (None) > --- PROPULSION (2) --- Aluminum Leg Aluminum Leg > --- UTILITY (2) ------ Targeting Computer System Shield > --- WEAPON (2) ------- Minigun Rocket Launcher > --- INVENTORY (3) ---- Experimental Sensor Array Minigun Minigun Peak State ------------ > --- POWER ------------ Light Nuclear Core > --- PROPULSION ------- Aluminum Leg Aluminum Leg > --- UTILITY ---------- Targeting Computer System Shield > --- WEAPON ----------- Minigun Minigun > --- INVENTORY -------- Experimental Sensor Array Minigun Rocket Launcher [Rating: 16] Favorites ----------- Power Light Nuclear Core Engine Light Ion Engine Power Core Light Nuclear Core Propulsion Aluminum Leg Leg Aluminum Leg Utility Targeting Computer Processor Targeting Computer Hackware System Shield Weapon Light Assault Rifle Ballistic Gun Light Assault Rifle Launcher Grenade Launcher Build | -11 -10 -10 -9 -9 ------- Run | Scr Mat Min Mat Min Slots Evolved 3 | 3 . . . . Power . | . . . . . Propulsion 1 | 1 . . . . Utility 1 | 1 . . . . Weapon 1 | 1 . . . . Parts Attached 22 | 2 7 2 10 1 Power 2 | . 1 . 1 . Engine . | . . . . . Core 2 | . 1 . 1 . Reactor . | . . . . . Propulsion 8 | 1 3 . 4 . Treads . | . . . . . Leg 8 | 1 3 . 4 . Wheel . | . . . . . Hover . | . . . . . Flight . | . . . . . Utility 3 | . 2 . 1 . Device . | . . . . . Storage . | . . . . . Processor 2 | . 2 . . . Hackware 1 | . . . 1 . Protection . | . . . . . Artifact . | . . . . . Weapon 9 | 1 1 2 4 1 Energy Gun . | . . . . . Energy Cannon . | . . . . . Ballistic Gun 4 | 1 . . 3 . Ballistic Cannon . | . . . . . Launcher 5 | . 1 2 1 1 Special Weapon . | . . . . . Impact Weapon . | . . . . . Slashing Weapon . | . . . . . Piercing Weapon . | . . . . . Special Melee Weapon . | . . . . . Unidentified Prototypes . | . . . . . Parts Lost 1 | . . . . 1 Power 1 | . . . . 1 Propulsion . | . . . . . Utility . | . . . . . Weapon . | . . . . . Highest Loss Streak 1 | . . . . 1 Average Slot Usage (%) 97 | . 93 100 100 96 Core 13 | . 12 14 14 10 Leg 28 | . 28 28 28 28 Processor 21 | . 22 28 15 14 Hackware 4 | . . . 12 14 Ballistic Gun 18 | . 16 14 26 24 Launcher 9 | . 11 14 1 3 Naked Turns . | . . . . . Heaviest Build 11 | 5 9 9 11 11 Greatest Support 20 | 20 20 20 20 20 Greatest Overweight (x) . | . . . . . Average Overweight (x) . | . . . . . Largest Inventory Capacity 3 | . . 3 3 3 Average Capacity 1 | . . 2 3 3 Most Carried 3 | . . 2 3 3 Average Carried 1 | . . 1 2 3 Final Capacity 3 | . . 3 3 3 Final Carried 3 | . . 2 3 3 Class Distribution -------------------- 70% | Mutant 29% | Hacker-Mutant Dominant Class ---------------- Mutant | -10/Materials Mutant | -10/Mines Hacker-Mutant | -9/Materials Hacker-Mutant | -9/Mines Resources | -11 -10 -10 -9 -9 ----------- Run | Scr Mat Min Mat Min Matter Collected 1069 | 220 247 75 527 . Remotely . | . . . . . Salvage Created 1108 | . 275 73 729 31 Parts 86 | . 24 12 50 . Haulers Intercepted 1 | . . . 1 . Recyclers Shooed . | . . . . . Parts Field Recycled . | . . . . . Retrieved Matter . | . . . . . Parts Self-Destructed . | . . . . . Prevented . | . . . . . Kills | -11 -10 -10 -9 -9 ------- Run | Scr Mat Min Mat Min Combat Hostiles Destroyed 42 | . 7 8 18 9 Guns 24 | . 6 . 15 3 AOE 18 | . 1 8 3 6 Classes Destroyed 11 | . 3 2 5 1 Worker 4 | . 3 1 . . Tunneler 1 | . . 1 . . Hauler 1 | . . . 1 . Recycler 1 | . . . 1 . Operator 1 | . . . 1 . Watcher 1 | . 1 . . . Swarmer 10 | . . 6 4 . Grunt 17 | . 7 2 8 . Duelist 1 | . . . 1 . Sentry 5 | . . . 5 . Assembled 9 | . . . . 9 Best Kill Streak 10 | . 4 4 10 9 Combat Bots Only 9 | . 4 3 8 9 Max Kills in Single Turn 4 | . 2 2 3 4 Gunslinging 1 | . . . . 1 Exploded 4 | . 1 2 2 4 Melee . | . . . . . Uniques/NPCs Destroyed . | . . . . . Combat | -11 -10 -10 -9 -9 -------- Run | Scr Mat Min Mat Min Damage Taken 2009 | . 609 135 815 450 Core 1636 | . 491 115 664 366 Absorbed by Shields . | . . . . . Redirected to Core 1256 | . 389 55 513 299 Core Remaining (%) 79 | 100 . 58 . . Volleys Fired 109 | . 44 10 46 9 Largest 2 | . 2 2 2 2 Hottest 58 | . 50 50 58 58 Shots Fired 197 | . 69 19 92 17 Gun 172 | . 57 10 90 15 Cannon . | . . . . . Launcher 25 | . 12 9 2 2 Special . | . . . . . Kinetic 172 | . 57 10 90 15 Thermal . | . . . . . Explosive 25 | . 12 9 2 2 Electromagnetic . | . . . . . Robot Hit Streak 21 | . 21 7 10 9 Robot Miss Streak 3 | . 3 2 3 1 Penetration Max . | . . . . . Secondary Targets 10 | . 2 . 7 1 Max Gunslinging Chain 1 | . 1 . 1 1 Shots Hit Robots 143 | . 46 12 71 14 Core Hits 81 | . 26 14 27 14 Critical Hits . | . . . . . Critical Kills . | . . . . . Critical Parts Destroyed . | . . . . . Melee Attacks . | . . . . . Impact . | . . . . . Slashing . | . . . . . Piercing . | . . . . . Sneak Attacks . | . . . . . Combat Hostiles . | . . . . . Follow-up Attacks . | . . . . . Damage Inflicted 3508 | . 611 741 1566 590 Guns 1804 | . 376 51 1172 205 Cannons . | . . . . . Explosions 1704 | . 235 690 394 385 Melee . | . . . . . Ramming . | . . . . . Kinetic 1804 | . 376 51 1172 205 Thermal . | . . . . . Explosive 1704 | . 235 690 394 385 Electromagnetic . | . . . . . Impact . | . . . . . Slashing . | . . . . . Piercing . | . . . . . Highest Corruption 2 | . . . 2 2 Average Corruption 2 | . . . 2 2 Corruption Purged . | . . . . . Effects 7 | . . . 6 1 Message Errors 2 | . . . 2 . Heat Flow Errors 1 | . . . 1 . Energy Discharges 1 | . . . 1 . Targeting Errors 3 | . . . 2 1 Overload Shots . | . . . . . Overflow Damage 100 | . . 10 36 54 Projectiles . | . . . . . Explosions 100 | . . 10 36 54 Melee . | . . . . . Knockbacks . | . . . . . Impact . | . . . . . Kinetic . | . . . . . Secondary . | . . . . . Self-Inflicted Damage 81 | . . . . 81 Shots 2 | . . . . 2 Rammed . | . . . . . Targets Rammed . | . . . . . Kicked . | . . . . . Crushed . | . . . . . Highest Temperature 224 | . 87 28 224 38 Average Temperature 30 | . 21 14 38 18 Received Heat Transfer 752 | . 339 18 375 20 Effects 2 | . . . 2 . Interference 2 | . . . 2 . Siege Activations . | . . . . . Robots Corrupted . | . . . . . Combat Hostiles . | . . . . . Parts Fried . | . . . . . Impact Corruptions . | . . . . . Robots Melted . | . . . . . Combat Hostiles . | . . . . . Parts Melted . | . . . . . Heat Transferred . | . . . . . Parts Sabotaged . | . . . . . Parts Stolen . | . . . . . Parts Stripped . | . . . . . Power Chain Reactions . | . . . . . Missiles Intercepted . | . . . . . Alert | -11 -10 -10 -9 -9 ------- Run | Scr Mat Min Mat Min Peak Influence 426 | . 133 159 426 151 Average Influence 122 | . 59 117 219 147 Maximum Alert Level 2 | . . . 2 . Low Security (%) 84 | 100 100 100 47 100 Level 1 14 | . . . 48 . Level 2 . | . . . 3 . Level 3 . | . . . . . Level 4 . | . . . . . Level 5 . | . . . . . High Security . | . . . . . Max Security . | . . . . . Squads Dispatched 3 | . . . 3 . Investigation . | . . . . . Extermination . | . . . . . Reinforcement 3 | . . . 3 . Assault . | . . . . . Garrison . | . . . . . Intercept . | . . . . . Construction Impeded 1 | . . . 1 . Haulers Reinforced . | . . . . . Stealth | -11 -10 -10 -9 -9 --------- Run | Scr Mat Min Mat Min Distress Signals . | . . . . . Communications Jammed . | . . . . . Distress Signals . | . . . . . Times Spotted 54 | . 9 7 27 11 Peak Tracking Total 12 | . 4 3 6 12 Tactical Retreats 7 | . . . 6 1 Traps | -11 -10 -10 -9 -9 ------- Run | Scr Mat Min Mat Min Traps Triggered 1 | . . . 1 . Indirectly . | . . . . . Trap Hack Attempts . | . . . . . Triggered . | . . . . . Disarmed . | . . . . . Reprogrammed . | . . . . . Reused . | . . . . . Traps Extracted . | . . . . . Installed . | . . . . . Triggered . | . . . . . Machines | -11 -10 -10 -9 -9 ---------- Run | Scr Mat Min Mat Min Machines Disabled 3 | . 3 . . . Max in Single Turn 2 | . 2 . . . Machines Sabotaged . | . . . . . Garrisons Compromised . | . . . . . Overloaded Fab Kills . | . . . . . Fab Network Shutdowns . | . . . . . Hacking | -11 -10 -10 -9 -9 --------- Run | Scr Mat Min Mat Min Machines Accessed 8 | . 5 . 3 . Terminals 8 | . 5 . 3 . Fabricators . | . . . . . Repair Stations . | . . . . . Recycling Units . | . . . . . Scanalyzers . | . . . . . Garrison Access . | . . . . . Total Hacks 27 | . 16 . 11 . Successful 8 | . 4 . 4 . Failed 19 | . 12 . 7 . Catastrophic 1 | . 1 . . . Database Lockouts . | . . . . . Manual 24 | . 16 . 8 . Terminals 27 | . 16 . 11 . Fabricators . | . . . . . Repair Stations . | . . . . . Recycling Units . | . . . . . Scanalyzers . | . . . . . Garrison Access . | . . . . . Terminal Hacks 1 | . . . 1 . Branch Access Points 1 | . . . 1 . Fabricator Hacks . | . . . . . Repair Station Hacks . | . . . . . Recycling Unit Hacks . | . . . . . Scanalyzer . | . . . . . Garrison Access Hacks . | . . . . . Unauthorized Hacks 31 | . 20 . 11 . Terminals 7 | . 4 . 3 . Assimilate 1 | . . . 1 . Botnet 3 | . 3 . . . Operators 3 | . 1 . 2 . Fabricators . | . . . . . Repair Stations . | . . . . . Recycling Units . | . . . . . Scanalyzers . | . . . . . Garrison Access . | . . . . . Data Cores Recovered . | . . . . . Used . | . . . . . Hacking Detections 6 | . 5 . 1 . Full Trace Events 1 | . 1 . . . Feedback Events . | . . . . . Feedback Blocked . | . . . . . Robot Schematics Acquired . | . . . . . Robots Built . | . . . . . Matter . | . . . . . Time . | . . . . . Total Robot Build Rating . | . . . . . Part Schematics Acquired . | . . . . . Parts Built . | . . . . . Matter . | . . . . . Time . | . . . . . Total Part Build Rating . | . . . . . Parts Repaired . | . . . . . Time . | . . . . . Parts Recycled . | . . . . . Recycled Matter . | . . . . . Retrieved Matter . | . . . . . Retrieved Components . | . . . . . Parts Scanalyzed . | . . . . . Part Schematics Acquired . | . . . . . Parts Damaged . | . . . . . Bothacking | -11 -10 -10 -9 -9 ------------ Run | Scr Mat Min Mat Min Used RIF Installer . | . . . . . Robots Hacked . | . . . . . Non-combat . | . . . . . Combat . | . . . . . Robot Hacks Applied . | . . . . . Relay Couplers Released . | . . . . . Robots Rewired . | . . . . . Allies Hacked . | . . . . . Hacks Repelled . | . . . . . Allies | -11 -10 -10 -9 -9 -------- Run | Scr Mat Min Mat Min Total Allies 1 | . . . 1 . Largest Group 1 | . . . 1 . Highest-Rated Group 10 | . . . 10 . Highest-Rated Ally 10 | . . . 10 . Total Orders 1 | . . . 1 . GOTO 1 | . . . 1 . Ally Attacks . | . . . . . Total Damage . | . . . . . Kills . | . . . . . Allies Corrupted . | . . . . . Allies Melted . | . . . . . Intel | -11 -10 -10 -9 -9 ------- Run | Scr Mat Min Mat Min Robot Analysis Total . | . . . . . Derelict Logs Recovered 1 | . . 1 . . Drone Launches . | . . . . . Drone Recoveries . | . . . . . Exploration | -11 -10 -10 -9 -9 ------------- Run | Scr Mat Min Mat Min Turns Passed 1979 | 18 870 463 588 40 Spaces Moved 1126 | 13 421 357 321 14 Core . | . . . . . Treads . | . . . . . Legs 1126 | 13 421 357 321 14 Wheels . | . . . . . Hover . | . . . . . Flight . | . . . . . Fastest Speed 120 | 120 120 120 120 120 Average Speed 120 | 120 120 120 120 120 Slowest Speed 120 | 120 120 120 120 120 Overloaded Moves . | . . . . . Propulsion Burnouts . | . . . . . Robots Hopped . | . . . . . Cave-ins Triggered . | . . . . . Exploration Rate (%) 32 | 2 56 74 25 7 Regions Visited 4 Branch Regions 2 Pre-discovered Areas 1 | . . 1 . . Known Exits Taken 1 | . . . 1 . Unknown Exits Taken 3 | 1 1 1 . . Scrap Searched 1 | . . 1 . . Spaces Dug 41 | . 41 . . . Terrain Destroyed 167 | . 70 68 19 10 Melee . | . . . . . Projectile . | . . . . . AOE 167 | . 70 68 19 10 Actions | -11 -10 -10 -9 -9 --------- Run | Scr Mat Min Mat Min Total 1592 | 14 729 373 452 24 Wait 276 | . 241 . 35 . Move 1122 | 12 420 356 320 14 Hop . | . . . . . Pick Up 3 | . . 1 2 . Fast Attach 8 | 2 4 . 2 . Attach . | . . . . . Detach 1 | . . . 1 . Swap 14 | . 3 2 8 1 Drop 13 | . 5 . 8 . Fire 109 | . 44 10 46 9 Melee . | . . . . . Ram . | . . . . . Kick . | . . . . . Crush . | . . . . . Escape Stasis . | . . . . . Rewire . | . . . . . Trap . | . . . . . Miscellaneous 46 | . 12 4 30 . Route ------- -11/Scrapyard -10/Materials -10/Mines -9/Materials (discovered 4 exits: *Min x2 / Sto x2) -9/Mines History --------- Turn | Location | Event 1 | -11/Scrapyard | Upgraded with Propulsion slot (x1) 1 | -11/Scrapyard | Upgraded with Utility slot (x1) 1 | -11/Scrapyard | Upgraded with Weapon slot (x1) 1 | -11/Scrapyard | Discovered new exit (range 1) 19 | -11/Scrapyard | Entered Materials 76 | -10/Materials | Core integrity fell below 50% 310 | -10/Materials | Build established: Mutant 878 | -10/Materials | Discovered new exit (range 8) 889 | -10/Materials | Entered Mines 891 | -10/Mines | Reached level 2 906 | -10/Mines | Received a Rocket Launcher from a helpful Derelict 1060 | -10/Mines | Found a damaged Exp. Sensor Array with a note attached 1065 | -10/Mines | Found Prototype Device 1319 | -10/Mines | Discovered new exit (range 11) 1352 | -10/Mines | Entered Materials 1354 | -9/Materials | Reached level 3 1487 | -9/Materials | Core integrity fell below 50% 1625 | -9/Materials | Reached level 4 1685 | -9/Materials | Destroyed 8 combat bots 1687 | -9/Materials | Build established: Hacker-Mutant 1751 | -9/Materials | Discovered new exit (range 17) 1754 | -9/Materials | Reached level 5 1814 | -9/Materials | Identified exit to Mines 1814 | -9/Materials | Identified exit to Storage 1940 | -9/Materials | Entered Mines 1941 | -9/Mines | Assembled infested the area 1946 | -9/Mines | Assisted by a Guerilla fighting off Assembled 1978 | -9/Mines | Core integrity fell below 20% 1980 | -9/Mines | Destroyed self with Rocket Launcher Last Messages --------------- 01956_ as-73640 knocked back. 01958_ JY-BQ5(h) destroyed. 01959_ K-01 Serf destroyed. 01959_ System corrupted: Minigun targeting data glitched. 01960_ K-01 Serf destroyed. 01964_ as-83308 destroyed. 01964_ Switching to secondary target: as-73640. 01964_ as-73640 destroyed. 01969_ as-98708 destroyed. 01977_ Destroyed Asb. Hover Unit. 01977_ Lgt. Nuclear Core destroyed. 01977_ Destroyed Lgt. Nuclear Core. 01977_ Destroyed Asb. Hover Unit. 01977_ as-76245 destroyed. 01977_ as-45046 destroyed. 01980_ as-02438 destroyed. 01980_ as-23649 destroyed. 01980_ as-54409 destroyed. 01980_ as-89355 destroyed. 01980_ Destroyed Asb. Hover Unit. Map ----- +----------------------------------------------------+ | | | ????????????????????????????????????????? | | ????????????????????????????????????????? | | ????????????????????????????????????????? | | ????????????????????????????????????????? | | ????????????????????????????????????????? | | ????????????????????????????????????????? | | ????????????????????????????????????????? | | ????????????????????????????????????????? | | ????????????????????????????????????????? | | ????????????????????????????????????????? | | ????????#???????????????????????????????? | | ?????## ???????????????????????????????? | | ?????# ???????????????????????????????? | | ?????# ???????????????????????????????? | | ?????# ??????????????????????????????? | | ?????# ??????????????????????????????? | | ?????# ??????????????????????????????? | | ?????# ??????????????????????????????? | | ?????? ??????????????????????????????? | | ??????? ??????????##??????????????????? | | ???????# ???#####? ##?????????????????? | | ???????# #### ## #?????????????????? | | ?#######; ## #?????????????????? | | ?# ## #??????????????????? | | ?# ## %% a@ ##??????????????????? | | ?# ##;]% ##???????????????????? | | ?# """ ###%a ##????????????????????? | | ?# """ =!* ##?????????????????????? | | ?# """ ###!=%= #??????????????????????? | | ?# #?##%* ##??????????????????????? | | ?#######??## ###???????????????????????? | | ???????????####?????????????????????????? | | ????????????????????????????????????????? | | ????????????????????????????????????????? | | ????????????????????????????????????????? | | ????????????????????????????????????????? | | ????????????????????????????????????????? | | ????????????????????????????????????????? | | ????????????????????????????????????????? | | ????????????????????????????????????????? | | ????????????????????????????????????????? | | ????????????????????????????????????????? | | ????????????????????????????????????????? | | ????????????????????????????????????????? | | ????????????????????????????????????????? | | ????????????????????????????????????????? | | ????????????????????????????????????????? | | ????????????????????????????????????????? | | ????????????????????????????????????????? | +----------------------------------------------------+ Best States ------------- Heat Dissipation 25 Energy Generation 14 Energy Capacity 160 Matter Stores 300 Matter Capacity 300 Sight Range 18 Terrain Scan Density 10 Evasion (%) 40 Targeting Accuracy 10 Offensive Hacking 15 Defensive Hacking 10 Item Schematics ----------------- None Robot Schematics ------------------ None Fabricated ------------ Nothing Alien Tech Used ----------------- None Achievements -------------- None Challenges ------------ None RPGLIKE | -11 -10 -10 -9 -9 --------- Run | Scr Mat Min Mat Min Levels Raised 4 | . . 1 3 . XP Earned 9900 | 3000 1110 1450 3840 500 XP Spent 8500 | 2800 . 1500 2500 1700 Upgrades 17 | 7 . 3 5 2 Propulsion Slot 1 | 1 . . . . Utility Slot 1 | 1 . . . . Weapon Slot 1 | 1 . . . . Inventory Capacity 3 | . . 3 . . Sight Range 2 | 2 . . . . Ranged Accuracy 6 | 2 . . 2 2 Hack Attack % 3 | . . . 3 . Protomatter Created 364 | . 86 33 227 18 Integrity Restored 1032 | . 258 96 678 . Core 1032 | . 258 96 678 . Protomatter Decayed . | . . . . . Game ------ Seed SurgeBladeMantle Manual? 0 Play Time 00:17:32 Cumulative 214.5 hours Start 2020.01.29 @ 23:31:34 End 2020.01.29 @ 23:48:13 Sessions 1 Manual Loads 0 Difficulty Rogue Special Mode Winter2019/RPGLIKE Game No. 344 Rogue 343 Adventurer 0 Explorer 1 Win Type - Total 1 Types 1/0/0/0/0/0/0 Lore% 60 Gallery% 77 Achievement% 50 Wizard Run 0 Options --------- ASCII 0 Keyboard 1 Movement Vi Keybinds 0 Fullscreen 1 Font 14/Cog Map View 72x52 Tactical HUD 1 Map Filters NONE Filters LOW_CONTRAST(13,24,33) Steam 0 RUN: ab960033-4348-4a66-b768-c11cf05015fe